[Event "4th Cap Verde-ch 2020"]
[Site "Mindelo"]
[Date "2020.10.16"]
[Round "2.4"]
[White "Monteiro, Paulo Alexandre G"]
[Black "Moes Joaquim, Carlos"]
[Result "1/2-1/2"]
[ECO "D02"]
[WhiteElo "2049"]
[BlackElo "1403"]
[Annotator "ChessBase"]
[PlyCount "156"]
[EventDate "2020.10.08"]
[EventType "swiss"]
[SourceTitle "playchess.com"]
[Source "ChessBase"]
[SourceQuality "1"]
[TimeControl "40/5400+30:1800+30"]

1. d4 {[%emt 0:00:00]} d5 {[%emt 0:03:58]} 2. Bf4 {[%emt 0:00:18]} Nf6 {[%emt 0:00:29]} 3. e3 {[%emt 0:01:15]} Bg4 {[%emt 0:01:39]} 4. Nf3 {[%emt 0:00:33]} e6 {[%emt 0:03:14]} 5. h3 {[%emt 0:01:07]} Bxf3 {[%emt 0:00:45]} 6. Qxf3 {[%emt 0:00:32]} Nbd7 {[%emt 0:03:58]} 7. Nd2 {[%emt 0:01:07]} c5 {[%emt 0:07:29]} 8. c3 {[%emt 0:01:17]} a6 {[%emt 0:09:05]} 9. Bd3 {[%emt 0:01:06]} Qb6 {[%emt 0:04:05]} 10. Rb1 {[%emt 0:01:14]} Qa5 {[%emt 0:03:55]} 11. a3 {[%emt 0:03:32]} g6 {[%emt 0:03:17]} 12. O-O {[%emt 0:02:41]} Rc8 {[%emt 0:01:15]} 13. dxc5 {[%emt 0:02:57]} Qxc5 {[%emt 0:00:49]} 14. e4 {[%emt 0:01:10]} Bg7 {[%emt 0:03:01]} 15. exd5 {[%emt 0:03:46]} Qxd5 {[%emt 0:02:44]} 16. Qe3 {[%emt 0:10:26]} O-O {[%emt 0:03:33]} 17. Nf3 {[%emt 0:03:59]} Rfd8 {[%emt 0:07:23]} 18. Rfd1 {[%emt 0:06:34]} Qb3 {[%emt 0:03:46]} 19. Nd4 {[%emt 0:07:17]} Qa4 {[%emt 0:00:52]} 20. Bc2 {[%emt 0:05:52]} Qa5 {[%emt 0:00:10]} 21. Bh6 {[%emt 0:03:38]} Qh5 {[%emt 0:06:22]} 22. Bxg7 {[%emt 0:01:00]} Kxg7 {[%emt 0:00:14]} 23. Nf3 {[%emt 0:02:32]} Qa5 {[%emt 0:05:42]} 24. Rd2 {[%emt 0:03:46]} b5 {[%emt 0:03:07]} 25. Rbd1 {[%emt 0:02:42]} Qc7 {[%emt 0:01:12]} 26. Bb3 {[%emt 0:02:53]} Nb6 {[%emt 0:02:42]} 27. Rxd8 {[%emt 0:08:23]} Rxd8 {[%emt 0:00:10]} 28. Rxd8 {[%emt 0:00:21]} Qxd8 {[%emt 0:00:07]} 29. Nd4 {[%emt 0:01:57]} Qd6 {[%emt 0:01:19]} 30. Nf3 {[%emt 0:04:52]} Nbd5 {[%emt 0:03:14]} 31. Qd4 {[%emt 0:01:08]} Qf4 {[%emt 0:00:19]} 32. Qxf4 {[%emt 0:02:44]} Nxf4 {[%emt 0:00:12]} 33. Bc2 {[%emt 0:01:01]} h5 {[%emt 0:02:09]} 34. a4 {[%emt 0:00:12]} N6d5 {[%emt 0:00:39]} 35. axb5 {[%emt 0:00:42]} axb5 {[%emt 0:00:08]} 36. Nd4 {[%emt 0:00:18]} Nc7 {[%emt 0:00:20]} 37. Kh2 {[%emt 0:01:22]} e5 {[%emt 0:00:30]} 38. Nc6 {[%emt 0:01:06]} f6 {[%emt 0:00:15]} 39. g3 {[%emt 0:00:17]} Nfe6 {[%emt 0:01:40]} 40. Kg2 {[%emt 0:02:10]} Nc5 {[%emt 0:01:48]} 41. Kf3 {[%emt 0:31:25]} Nd7 {[%emt 0:32:26]} 42. Ke2 {[%emt 0:02:19]} f5 {[%emt 0:01:11]} 43. Na7 {[%emt 0:02:32]} e4 {[%emt 0:07:55]} 44. f3 {[%emt 0:02:02]} exf3+ {[%emt 0:00:08]} 45. Kxf3 {[%emt 0:00:26]} Ne5+ {[%emt 0:00:10]} 46. Kg2 {[%emt 0:00:00]} Kf6 {[%emt 0:00:00]} 47. Bd1 {[%emt 0:00:00]} Ke6 {[%emt 0:00:00]} 48. Be2 {[%emt 0:00:00]} Nc4 {[%emt 0:00:00]} 49. b3 {[%emt 0:00:00]} Nd6 {[%emt 0:00:00]} 50. c4 {[%emt 0:00:00]} bxc4 {[%emt 0:00:00]} 51. bxc4 {[%emt 0:00:00]} Ne4 {[%emt 0:00:00]} 52. Nb5 {[%emt 0:00:00]} Ne8 {[%emt 0:00:00]} 53. Nd4+ {[%emt 0:00:00]} Kd6 {[%emt 0:00:00]} 54. Nf3 {[%emt 0:00:00]} N8f6 {[%emt 0:00:00]} 55. Nh4 {[%emt 0:00:00]} Ke5 {[%emt 0:00:00]} 56. Nxg6+ {[%emt 0:00:00]} Kd4 {[%emt 0:00:00]} 57. Nf4 {[%emt 0:00:00]} Nd2 {[%emt 0:00:00]} 58. Nxh5 {[%emt 0:00:00]} Nxh5 {[%emt 0:00:00]} 59. Bxh5 {[%emt 0:00:00]} Nxc4 {[%emt 0:10:04]} 60. Kf3 {[%emt 0:11:29]} Ke5 {[%emt 0:00:00]} 61. Bf7 {[%emt 0:00:00]} Nd2+ {[%emt 0:00:00]} 62. Kg2 {[%emt 0:00:00]} Ne4 {[%emt 0:00:00]} 63. h4 {[%emt 0:00:00]} Kf6 {[%emt 0:00:00]} 64. Bd5 {[%emt 0:00:00]} Nd6 {[%emt 0:00:00]} 65. Kf3 {[%emt 0:00:00]} Ne8 {[%emt 0:00:00]} 66. Bc6 {[%emt 0:00:00]} Ng7 {[%emt 0:00:00]} 67. Bd7 {[%emt 0:00:00]} Nh5 {[%emt 0:00:00]} 68. Bb5 {[%emt 0:00:00]} Ke5 {[%emt 0:00:00]} 69. g4 {[%emt 0:00:00]} fxg4+ {[%emt 0:00:00]} 70. Kxg4 {[%emt 0:00:00]} Nf6+ {[%emt 0:00:00]} 71. Kg5 {[%emt 0:00:00]} Nh7+ {[%emt 0:00:00]} 72. Kg6 {[%emt 0:01:29]} Nf8+ {[%emt 0:00:00]} 73. Kf7 {[%emt 0:01:23]} Nh7 {[%emt 0:00:00]} 74. h5 {[%emt 0:01:36]} Nf6 {[%emt 0:00:00]} 75. h6 {[%emt 0:00:42]} Kf5 {[%emt 0:00:00]} 76. Kg7 {[%emt 0:00:23]} Kg5 {[%emt 0:00:00]} 77. Bc6 {[%emt 0:01:00]} Kh5 {[%emt 0:00:00]} 78. Be8+ {[%emt 0:00:48]} Nxe8+ {[%emt 0:00:00]} 1/2-1/2

[Event "4th Cap Verde-ch 2020"]
[Site "Mindelo"]
[Date "2020.10.16"]
[Round "3.2"]
[White "Fernandes, Henry"]
[Black "Monteiro, Antonio David Cabral"]
[Result "0-1"]
[ECO "B07"]
[WhiteElo "1619"]
[BlackElo "1766"]
[Annotator "NA RC"]
[PlyCount "136"]
[EventDate "2020.10.08"]
[EventType "swiss"]
[EventCountry "KAP"]
[SourceTitle "playchess.com"]
[Source "ChessBase"]
[SourceQuality "1"]
[TimeControl "40/5400+30:1800+30"]

1. e4 {[%emt 0:01:58]} d6 {[%emt 0:00:00]} 2. Nf3 {[%emt 0:00:39]} Nf6 {[%emt 0:00:05]} 3. Nc3 {[%emt 0:00:18]} g6 {[%emt 0:01:47]} 4. Bc4 {[%emt 0:02:11]} c6 {[%emt 0:03:58]} 5. d4 {[%emt 0:00:59]} b5 {[%emt 0:03:22]} 6. Bd3 {[%emt 0:01:33]} Bg7 {[%emt 0:03:12]} 7. e5 {[%emt 0:02:09]} dxe5 {[%emt 0:03:10]} 8. dxe5 {[%emt 0:00:19]} Nd5 {[%emt 0:07:52]} 9. Nxd5 {[%emt 0:05:06]} Qxd5 {[%emt 0:00:38]} 10. Bf4 {[%emt 0:00:20]} Nd7 {[%emt 0:05:08]} 11. Qe2 {[%emt 0:00:22]} Nc5 {[%emt 0:02:33]} 12. O-O {[%emt 0:02:18]} Nxd3 {[%emt 0:00:24]} 13. Qxd3 {[%emt 0:00:14]} O-O {[%emt 0:03:18]} 14. Qe3 {[%emt 0:03:50]} c5 {[%emt 0:02:22]} 15. h4 {[%emt 0:01:41]} h5 {[%emt 0:04:43]} 16. Rfd1 {[%emt 0:01:19]} Qc6 {[%emt 0:01:17]} 17. Bh6 {[%emt 0:00:46]} Bg4 {[%emt 0:01:21]} 18. Bxg7 {[%emt 0:00:58]} Kxg7 {[%emt 0:00:09]} 19. Rd3 {[%emt 0:00:11]} Bxf3 {[%emt 0:01:10]} 20. Qxf3 {[%emt 0:00:08]} Qxf3 {[%emt 0:00:13]} 21. Rxf3 {[%emt 0:00:07]} Rfd8 {[%emt 0:00:56]} 22. Re3 {[%emt 0:00:18]} Rd2 {[%emt 0:01:10]} 23. Rc1 {[%emt 0:00:14]} Rad8 {[%emt 0:02:20]} 24. Kf1 {[%emt 0:00:11]} c4 {[%emt 0:01:34]} 25. Re2 {[%emt 0:01:01]} R2d4 {[%emt 0:01:40]} 26. g3 {[%emt 0:00:23]} e6 {[%emt 0:00:40]} 27. c3 {[%emt 0:00:17]} Rd3 {[%emt 0:00:59]} 28. b3 {[%emt 0:02:53]} cxb3 {[%emt 0:00:54]} 29. axb3 {[%emt 0:00:10]} Rc8 {[%emt 0:01:54]} 30. Re3 {[%emt 0:01:04]} Rxe3 {[%emt 0:01:00]} 31. fxe3 {[%emt 0:00:05]} Rc5 {[%emt 0:00:39]} 32. Kf2 {[%emt 0:00:31]} Rxe5 {[%emt 0:00:14]} 33. c4 {[%emt 0:00:05]} Rc5 {[%emt 0:00:53]} 34. Ra1 {[%emt 0:00:22]} bxc4 {[%emt 0:00:37]} 35. bxc4 {[%emt 0:00:04]} a5 {[%emt 0:01:40]} 36. Ra2 {[%emt 0:01:20]} Kf6 {[%emt 0:00:31]} 37. Kf3 {[%emt 0:00:23]} e5 {[%emt 0:02:34]} 38. e4 {[%emt 0:00:25]} Ke6 {[%emt 0:01:41]} 39. Ra4 {[%emt 0:02:06]} f5 {[%emt 0:01:16]} 40. Ke3 {[%emt 0:00:47]} Kf6 {[%emt 0:01:27]} 41. Kf3 {[%emt 0:30:06]} g5 {[%emt 0:30:45]} 42. exf5 {[%emt 0:02:45]} gxh4 {[%emt 0:01:38]} 43. gxh4 {[%emt 0:00:36]} Kxf5 {[%emt 0:00:35]} 44. Ra1 {[%emt 0:01:02]} Rxc4 {[%emt 0:00:42]} 45. Rxa5 {[%emt 0:00:09]} Rxh4 {[%emt 0:00:45]} 46. Ra8 {[%emt 0:00:14]} Rh3+ {[%emt 0:01:18]} 47. Kg2 {[%emt 0:00:05]} Rd3 {[%emt 0:03:24]} 48. Rf8+ {[%emt 0:00:06]} Ke4 {[%emt 0:00:51]} 49. Rh8 {[%emt 0:00:16]} Ke3 {[%emt 0:00:50]} 50. Rxh5 {[%emt 0:00:03]} e4 {[%emt 0:01:16]} 51. Ra5 {[%emt 0:02:36]} Ke2 {[%emt 0:00:37]} 52. Ra4 {[%emt 0:00:22]} e3 {[%emt 0:01:19]} 53. Ra2+ {[%emt 0:00:26]} Rd2 {[%emt 0:00:46]} 54. Ra3 {[%emt 0:00:10]} Ke1+ {[%emt 0:01:43]} 55. Kf3 {[%emt 0:00:24]} e2 {[%emt 0:01:14]} 56. Ra1+ {[%emt 0:01:08]} Rd1 {[%emt 0:00:42]} 57. Ra2 {[%emt 0:00:21]} Rd3+ {[%emt 0:01:51]} 58. Kg2 {[%emt 0:00:39]} Rd5 {[%emt 0:00:55]} 59. Ra1+ {[%emt 0:00:13]} Kd2 {[%emt 0:00:43]} 60. Ra2+ {[%emt 0:00:16]} Ke3 {[%emt 0:00:16]} 61. Ra3+ {[%emt 0:01:59]} Rd3 {[%emt 0:00:17]} 62. Ra1 {[%emt 0:00:16]} Rd1 {[%emt 0:00:52]} 63. Ra3+ {[%emt 0:00:14]} Kd4 {[%emt 0:00:40]} 64. Ra4+ {[%emt 0:04:52]} Kc3 {[%emt 0:00:33]} 65. Ra3+ {[%emt 0:00:15]} Kb2 {[%emt 0:00:34]} 66. Re3 {[%emt 0:00:06]} e1=Q {[%emt 0:00:26]} 67. Rxe1 {[%emt 0:00:23]} Rxe1 {[%emt 0:00:02]} 68. Kf2 {[%emt 0:00:13]} Re8 {[%emt 0:27:05]} 0-1

[Event "4th Cap Verde-ch 2020"]
[Site "Mindelo"]
[Date "2020.10.16"]
[Round "3.3"]
[White "Moes Joaquim, Carlos"]
[Black "Fortes, Aires"]
[Result "0-1"]
[ECO "D37"]
[WhiteElo "1403"]
[BlackElo "1504"]
[Annotator "NA RC"]
[PlyCount "57"]
[EventDate "2020.10.08"]
[EventType "swiss"]
[EventCountry "KAP"]
[SourceTitle "playchess.com"]
[Source "ChessBase"]
[SourceQuality "1"]
[TimeControl "40/5400+30:1800+30"]

1. d4 {[%emt 0:03:29]} Nf6 {[%emt 0:00:00]} 2. c4 {[%emt 0:00:13]} e6 {[%emt 0:00:00]} 3. Nf3 {[%emt 0:01:15]} d5 {[%emt 0:01:01]} 4. Nc3 {[%emt 0:02:44]} Be7 {[%emt 0:00:37]} 5. h3 {[%emt 0:01:37]} a6 {[%emt 0:00:52]} 6. Bf4 {[%emt 0:01:00]} Nbd7 {[%emt 0:00:27]} 7. e3 {[%emt 0:00:56]} b6 {[%emt 0:00:29]} 8. Be2 {[%emt 0:00:25]} Bb7 {[%emt 0:00:46]} 9. O-O {[%emt 0:01:08]} dxc4 {[%emt 0:01:39]} 10. Bxc4 {[%emt 0:00:38]} b5 {[%emt 0:00:07]} 11. Be2 {[%emt 0:01:05]} O-O {[%emt 0:00:16]} 12. a3 {[%emt 0:00:21]} c5 {[%emt 0:01:40]} 13. dxc5 {[%emt 0:01:30]} Nxc5 {[%emt 0:01:45]} 14. b4 {[%emt 0:00:47]} Nce4 {[%emt 0:02:02]} 15. Nxe4 {[%emt 0:01:49]} Nxe4 {[%emt 0:00:11]} 16. Qxd8 {[%emt 0:00:29]} Rfxd8 {[%emt 0:00:49]} 17. Rac1 {[%emt 0:01:00]} Rac8 {[%emt 0:03:02]} 18. Rxc8 {[%emt 0:04:12]} Rxc8 {[%emt 0:01:23]} 19. Be5 {[%emt 0:02:15]} Rc2 {[%emt 0:04:11]} 20. Bd3 {[%emt 0:02:37]} Ra2 {[%emt 0:00:52]} 21. Bb1 {[%emt 0:00:14]} Rxa3 {[%emt 0:01:01]} 22. Rd1 {[%emt 0:00:47]} Bd5 {[%emt 0:07:52]} 23. g3 {[%emt 0:06:57]} f6 {[%emt 0:07:54]} 24. Bb2 {[%emt 0:01:38]} Rb3 {[%emt 0:00:20]} 25. Nd2 {[%emt 0:00:17]} Rxb2 {[%emt 0:00:48]} 26. Nxe4 {[%emt 0:00:17]} Bxb4 {[%emt 0:02:00]} 27. g4 {[%emt 0:02:21]} Kf7 {[%emt 0:03:25]} 28. Kg2 {[%emt 0:00:13]} Rxb1 {[%emt 0:00:28]} 29. Rxb1 {[%emt 0:00:02]} 0-1

[Event "4th Cap Verde-ch 2020"]
[Site "Mindelo"]
[Date "2020.10.16"]
[Round "3.4"]
[White "Pereira, Eder Marcio"]
[Black "Fernandes, Luis De Pina"]
[Result "1-0"]
[ECO "B50"]
[WhiteElo "1788"]
[BlackElo "1606"]
[Annotator "NA RC"]
[PlyCount "59"]
[EventDate "2020.10.08"]
[EventType "swiss"]
[EventCountry "KAP"]
[SourceTitle "playchess.com"]
[Source "ChessBase"]
[SourceQuality "1"]
[TimeControl "40/5400+30:1800+30"]

1. e4 {[%emt 0:02:12]} c5 {[%emt 0:00:00]} 2. Nf3 {[%emt 0:01:06]} g6 {[%emt 0:00:15]} 3. Bc4 {[%emt 0:02:40]} Bg7 {[%emt 0:01:36]} 4. c3 {[%emt 0:05:13]} Nc6 {[%emt 0:00:13]} 5. O-O {[%emt 0:02:08]} d6 {[%emt 0:01:01]} 6. d3 {[%emt 0:00:34]} Nf6 {[%emt 0:00:16]} 7. Bg5 {[%emt 0:00:37]} Bg4 {[%emt 0:01:02]} 8. h3 {[%emt 0:06:54]} Bxf3 {[%emt 0:01:13]} 9. Qxf3 {[%emt 0:00:16]} Ne5 {[%emt 0:00:15]} 10. Bb5+ {[%emt 0:00:40]} Nfd7 {[%emt 0:01:51]} 11. Qe2 {[%emt 0:04:31]} O-O {[%emt 0:00:43]} 12. Nd2 {[%emt 0:07:26]} f6 {[%emt 0:06:40]} 13. Be3 {[%emt 0:02:51]} a6 {[%emt 0:00:51]} 14. Ba4 {[%emt 0:00:36]} Kh8 {[%emt 0:00:28]} 15. Bb3 {[%emt 0:08:03]} Nc6 {[%emt 0:10:45]} 16. f4 {[%emt 0:07:56]} f5 {[%emt 0:03:36]} 17. g4 {[%emt 0:10:36]} fxg4 {[%emt 0:05:44]} 18. hxg4 {[%emt 0:04:20]} Qe8 {[%emt 0:03:45]} 19. Kf2 {[%emt 0:04:30]} e6 {[%emt 0:01:51]} 20. Rh1 {[%emt 0:01:00]} Na5 {[%emt 0:01:08]} 21. Bc2 {[%emt 0:04:06]} d5 {[%emt 0:13:34]} 22. Rh3 {[%emt 0:03:13]} d4 {[%emt 0:00:29]} 23. Rah1 {[%emt 0:01:01]} dxe3+ {[%emt 0:00:13]} 24. Kxe3 {[%emt 0:00:22]} h6 {[%emt 0:00:35]} 25. Rxh6+ {[%emt 0:04:51]} Bxh6 {[%emt 0:00:18]} 26. Qh2 {[%emt 0:00:11]} Kg8 {[%emt 0:03:41]} 27. Qxh6 {[%emt 0:00:27]} Nf6 {[%emt 0:00:14]} 28. Qh8+ {[%emt 0:01:07]} Kf7 {[%emt 0:00:04]} 29. Rh7+ {[%emt 0:00:12]} Nxh7 {[%emt 0:01:22]} 30. Qxh7+ {[%emt 0:15:21]} 1-0

[Event "4th Cap Verde-ch 2020"]
[Site "Mindelo"]
[Date "2020.10.17"]
[Round "4.2"]
[White "Monteiro, Antonio David Cabral"]
[Black "Pereira, Eder Marcio"]
[Result "1-0"]
[ECO "D58"]
[WhiteElo "1766"]
[BlackElo "1788"]
[Annotator "NA"]
[PlyCount "56"]
[EventDate "2020.10.08"]
[EventType "swiss"]
[EventCountry "KAP"]
[SourceTitle "playchess.com"]
[Source "ChessBase"]
[SourceQuality "1"]
[TimeControl "40/5400+30:1800+30"]

1. d4 {[%emt 0:00:00]} Nf6 {[%emt 0:05:49]} 2. c4 {[%emt 0:00:12]} e6 {[%emt 0:00:33]} 3. Nc3 {[%emt 0:00:20]} d5 {[%emt 0:00:13]} 4. Bg5 {[%emt 0:00:54]} Nbd7 {[%emt 0:01:02]} 5. e3 {[%emt 0:00:37]} Be7 {[%emt 0:01:27]} 6. Nf3 {[%emt 0:01:29]} b6 {[%emt 0:00:48]} 7. cxd5 {[%emt 0:04:57]} exd5 {[%emt 0:10:08]} 8. Bd3 {[%emt 0:01:24]} O-O {[%emt 0:02:00]} 9. O-O {[%emt 0:00:55]} Bb7 {[%emt 0:00:27]} 10. Rc1 {[%emt 0:01:25]} h6 {[%emt 0:06:32]} 11. Bh4 {[%emt 0:02:06]} Re8 {[%emt 0:08:24]} 12. a3 {[%emt 0:07:49]} Rc8 {[%emt 0:09:21]} 13. Nb5 {[%emt 0:08:36]} c6 {[%emt 0:09:29]} 14. Nxa7 {[%emt 0:00:44]} Nh5 {[%emt 0:11:18]} 15. Nxc8 {[%emt 0:07:31]} Qxc8 {[%emt 0:01:37]} 16. Bf5 {[%emt 0:03:16]} Qd8 {[%emt 0:01:06]} 17. Bxd7 {[%emt 0:02:24]} Qxd7 {[%emt 0:03:01]} 18. Ne5 {[%emt 0:01:46]} Qf5 {[%emt 0:01:49]} 19. g4 {[%emt 0:02:36]} Qe4 {[%emt 0:00:08]} 20. Bxe7 {[%emt 0:04:42]} Rxe7 {[%emt 0:01:25]} 21. gxh5 {[%emt 0:07:36]} Rxe5 {[%emt 0:06:15]} 22. dxe5 {[%emt 0:02:24]} c5 {[%emt 0:00:19]} 23. Qe2 {[%emt 0:02:41]} d4 {[%emt 0:16:30]} 24. f3 {[%emt 0:00:29]} Qxe5 {[%emt 0:00:19]} 25. Rce1 {[%emt 0:02:50]} Qg5+ {[%emt 0:01:19]} 26. Qg2 {[%emt 0:02:03]} Qd5 {[%emt 0:00:08]} 27. exd4 {[%emt 0:01:54]} cxd4 {[%emt 0:00:34]} 28. Qg4 {[%emt 0:01:59]} f5 {[%emt 0:01:03]} 1-0

[Event "4th Cap Verde-ch 2020"]
[Site "Mindelo"]
[Date "2020.10.17"]
[Round "4.4"]
[White "Neves, Diogo Alexandre"]
[Black "Fernandes, Henry"]
[Result "1-0"]
[ECO "D02"]
[WhiteElo "1573"]
[BlackElo "1619"]
[Annotator "NA"]
[PlyCount "27"]
[EventDate "2020.10.08"]
[EventType "swiss"]
[EventCountry "KAP"]
[SourceTitle "playchess.com"]
[Source "ChessBase"]
[SourceQuality "1"]
[TimeControl "40/5400+30:1800+30"]

1. d4 {[%emt 0:00:00]} d5 {[%emt 0:03:59]} 2. Bf4 {[%emt 0:00:00]} Nf6 {[%emt 0:00:19]} 3. e3 {[%emt 0:00:35]} e6 {[%emt 0:00:07]} 4. Nf3 {[%emt 0:00:18]} Bd6 {[%emt 0:00:12]} 5. Bg3 {[%emt 0:00:21]} c5 {[%emt 0:00:53]} 6. c3 {[%emt 0:00:38]} O-O {[%emt 0:02:11]} 7. Nbd2 {[%emt 0:01:03]} cxd4 {[%emt 0:00:32]} 8. exd4 {[%emt 0:01:26]} Nc6 {[%emt 0:00:52]} 9. Bd3 {[%emt 0:00:36]} Re8 {[%emt 0:00:36]} 10. Ne5 {[%emt 0:01:23]} Qc7 {[%emt 0:01:14]} 11. f4 {[%emt 0:00:47]} Nd7 {[%emt 0:01:21]} 12. O-O {[%emt 0:01:28]} f6 {[%emt 0:00:41]} 13. Qh5 {[%emt 0:00:55]} Kf8 {[%emt 0:06:08]} 14. Qf7# {[%emt 1:27:30]} 1-0

[Event "4th Cap Verde-ch 2020"]
[Site "Mindelo"]
[Date "2020.10.17"]
[Round "5.3"]
[White "Pereira, Eder Marcio"]
[Black "Neves, Diogo Alexandre"]
[Result "1-0"]
[ECO "A48"]
[WhiteElo "1788"]
[BlackElo "1573"]
[Annotator "NA RC"]
[PlyCount "53"]
[EventDate "2020.10.08"]
[EventType "swiss"]
[EventCountry "KAP"]
[SourceTitle "playchess.com"]
[Source "ChessBase"]
[SourceQuality "1"]
[TimeControl "40/5400+30:1800+30"]

1. d4 {[%emt 0:00:06]} Nf6 {[%emt 0:00:00]} 2. Bf4 {[%emt 0:00:27]} g6 {[%emt 0:00:50]} 3. e3 {[%emt 0:02:34]} Bg7 {[%emt 0:00:24]} 4. h3 {[%emt 0:00:47]} d6 {[%emt 0:01:05]} 5. Nf3 {[%emt 0:00:15]} O-O {[%emt 0:00:33]} 6. Be2 {[%emt 0:00:41]} c5 {[%emt 0:03:19]} 7. c3 {[%emt 0:06:34]} b6 {[%emt 0:01:54]} 8. O-O {[%emt 0:03:40]} Bb7 {[%emt 0:01:49]} 9. Nbd2 {[%emt 0:00:31]} Nbd7 {[%emt 0:00:31]} 10. a4 {[%emt 0:00:36]} Re8 {[%emt 0:06:42]} 11. Nc4 {[%emt 0:17:39]} Rc8 {[%emt 0:11:26]} 12. Bxd6 {[%emt 0:10:18]} exd6 {[%emt 0:01:19]} 13. Nxd6 {[%emt 0:00:17]} Qc7 {[%emt 0:00:26]} 14. Nxe8 {[%emt 0:03:13]} Rxe8 {[%emt 0:01:05]} 15. Qb3 {[%emt 0:11:58]} cxd4 {[%emt 0:08:59]} 16. cxd4 {[%emt 0:01:04]} Bxf3 {[%emt 0:04:01]} 17. Bxf3 {[%emt 0:00:30]} Ne4 {[%emt 0:00:50]} 18. Rac1 {[%emt 0:05:59]} Qd6 {[%emt 0:01:53]} 19. Bxe4 {[%emt 0:01:10]} Rxe4 {[%emt 0:00:21]} 20. Rc8+ {[%emt 0:00:15]} Bf8 {[%emt 0:00:41]} 21. Rfc1 {[%emt 0:01:51]} Kg7 {[%emt 0:00:39]} 22. R1c6 {[%emt 0:02:12]} Qb4 {[%emt 0:02:09]} 23. Qxb4 {[%emt 0:08:48]} Bxb4 {[%emt 0:00:49]} 24. R6c7 {[%emt 0:00:39]} Nf6 {[%emt 0:02:01]} 25. Rxa7 {[%emt 0:00:48]} Re7 {[%emt 0:00:17]} 26. Rxe7 {[%emt 0:01:48]} Bxe7 {[%emt 0:00:23]} 27. Rb8 {[%emt 0:18:50]} 1-0

[Event "4th Cap Verde-ch 2020"]
[Site "Mindelo"]
[Date "2020.10.18"]
[Round "6.2"]
[White "Rodriguez Guevara, Celia M."]
[Black "Fortes, Aires"]
[Result "0-1"]
[ECO "C54"]
[WhiteElo "1858"]
[BlackElo "1504"]
[Annotator "NA RC"]
[PlyCount "37"]
[EventDate "2020.10.08"]
[EventType "swiss"]
[EventCountry "KAP"]
[SourceTitle "playchess.com"]
[Source "ChessBase"]
[SourceQuality "1"]
[TimeControl "40/5400+30:1800+30"]

1. e4 {[%emt 0:01:52]} e5 {[%emt 0:04:23]} 2. Nf3 {[%emt 0:00:20]} Nc6 {[%emt 0:00:08]} 3. Bc4 {[%emt 0:00:19]} Bc5 {[%emt 0:00:13]} 4. c3 {[%emt 0:00:15]} Nf6 {[%emt 0:00:49]} 5. d3 {[%emt 0:00:05]} a6 {[%emt 0:00:30]} 6. Bb3 {[%emt 0:00:56]} O-O {[%emt 0:00:36]} 7. O-O {[%emt 0:00:21]} d6 {[%emt 0:01:42]} 8. h3 {[%emt 0:00:40]} Be6 {[%emt 0:00:33]} 9. Bc2 {[%emt 0:00:40]} Ba7 {[%emt 0:07:19]} 10. a4 {[%emt 0:01:46]} d5 {[%emt 0:01:16]} 11. exd5 {[%emt 0:05:43]} Nxd5 {[%emt 0:01:54]} 12. Re1 {[%emt 0:09:27]} Qf6 {[%emt 0:04:46]} 13. d4 {[%emt 0:06:20]} exd4 {[%emt 0:01:23]} 14. Bg5 {[%emt 0:00:48]} Ne3 {[%emt 0:02:42]} 15. fxe3 {[%emt 0:00:30]} dxe3 {[%emt 0:00:25]} 16. Re2 {[%emt 0:00:55]} Bc4 {[%emt 0:04:11]} 17. Bxf6 {[%emt 0:00:19]} gxf6 {[%emt 0:00:28]} 18. Kh1 {[%emt 0:01:06]} Rad8 {[%emt 0:01:35]} 19. Qe1 {[%emt 0:01:10]} 0-1